Cogmind - Beta 16 @@@ ROGUE MODE // 2026.01.10 @ 20:55:09 Player: AnotherZach Result: Destroyed by S-27 Virus with Autogun Performance ------------- Evolutions (3) 1500 Regions Visited (5) 1000 Robots Destroyed (112) 560 Value Destroyed (2702) 2702 Prototype IDs (8) 160 Alien Tech Used (0) 0 Bonus (0) 0 TOTAL SCORE: 5922 Bonus ------- None Cogmind --------- Core Integrity 0/700 Matter 139/300 Energy 100/100 System Corruption 2% Temperature Cool (0) Movement Core (400) Ox7 Location -7/Lower Caves Parts ------- > --- POWER (2) -------- (None) > --- PROPULSION (4) --- (None) > --- UTILITY (4) ------ Large Storage Unit Improved Signal Interpreter Improved Salvage Targeting Computer > --- WEAPON (3) ------- Powered Hammer > --- INVENTORY (15) --- Cooled Airjet Cooled Airjet Cooled Airjet Improved Heat Sink Improved Heat Sink Improved Trap Extractor (0/6) Heavy Ion Cannon Peak State ------------ > --- POWER ------------ Light Nuclear Core Improved Deuterium Engine > --- PROPULSION ------- Improved Titanium Leg Improved Titanium Leg Improved Titanium Leg Improved Titanium Leg > --- UTILITY ---------- Coolant Injector Huge Storage Unit Improved Signal Interpreter Improved Targeting Computer > --- WEAPON ----------- Advanced Beam Rifle Precision Assault Rifle Precision Assault Rifle > --- INVENTORY -------- Light Ion Engine Improved Heat Sink Large Storage Unit Medium Matter Pod Structural Scanner Improved Sensor Array Improved Terrain Scanner Terrain Scan Processor Launcher Guidance Computer Light Armor Plating Improved Light Armor Plating Insulated Plating Insulated Plating System Restoration Module High-powered Tractor Beam Improved Trap Extractor Improved EM Shotgun Heavy Assault Rifle Heavy Assault Rifle Rocket Launcher Scythe [Rating: 52] Favorites ----------- Power Light Nuclear Core Engine Light Ion Engine Power Core Light Nuclear Core Propulsion Improved Treads Treads Improved Treads Leg Improved Titanium Leg Wheel Wheel Hover Unit Cooled Airjet Utility Large Storage Unit Device Improved Heat Sink Storage Large Storage Unit Processor Improved Targeting Computer Hackware Hacking Suite Protection Light Armor Plating Weapon Heavy Assault Rifle Energy Gun Advanced Beam Rifle Ballistic Gun Heavy Assault Rifle Ballistic Cannon Light Cannon Launcher Rocket Launcher Impact Weapon Powered Hammer Slashing Weapon Scythe Piercing Weapon Spear Build | -11 -10 -10 -8 -7 -7 ------- Run | Yrd Mat Sub Mat Fac Low Slots Evolved 6 | . . . 4 2 . Power 1 | . . . . 1 . Propulsion 2 | . . . 2 . . Utility 2 | . . . 1 1 . Weapon 1 | . . . 1 . . Parts Attached 103 | 7 9 4 34 44 5 Power 11 | 1 . 2 2 5 1 Engine 5 | 1 . 1 . 3 . Core 6 | . . 1 2 2 1 Reactor . | . . . . . . Propulsion 29 | 2 2 . 8 16 1 Treads 13 | 2 2 . 8 1 . Leg 7 | . . . . 7 . Wheel 6 | . . . . 5 1 Hover 3 | . . . . 3 . Flight . | . . . . . . Utility 26 | 2 2 . 8 13 1 Device 11 | 1 . . 4 6 . Storage 4 | 1 1 . . 2 . Processor 4 | . 1 . . 3 . Hackware 2 | . . . 2 . . Protection 5 | . . . 2 2 1 Artifact . | . . . . . . Weapon 37 | 2 5 2 16 10 2 Energy Gun 11 | 1 . . 8 2 . Energy Cannon . | . . . . . . Ballistic Gun 16 | 1 2 1 6 4 2 Ballistic Cannon 3 | . 2 . . 1 . Launcher 4 | . 1 1 1 1 . Special Weapon . | . . . . . . Impact Weapon 1 | . . . . 1 . Slashing Weapon 1 | . . . 1 . . Piercing Weapon 1 | . . . . 1 . Special Melee Weapon . | . . . . . . Unidentified Prototypes 8 | . . . 4 4 . Parts Lost 32 | . . 3 2 22 5 Power 7 | . . 2 . 4 1 Propulsion 10 | . . . 1 7 2 Utility 6 | . . . 1 4 1 Weapon 9 | . . 1 . 7 1 Highest Loss Streak 18 | . . 1 1 18 5 To Critical Strikes . | . . . . . . Average Backups 13 | 3 9 14 14 15 5 Power . | . 1 . . . . Propulsion 4 | 2 4 7 4 3 1 Utility 4 | . 1 4 4 8 3 Weapon 3 | . 2 3 4 3 1 Tool/Special . | . . . . . . Unused Backups 26 | . 3 . 11 10 2 Power . | . . . . . . Propulsion 8 | . 2 . 4 2 . Utility 11 | . . . 3 7 1 Weapon 5 | . 1 . 3 . 1 Tool/Special 2 | . . . 1 1 . Average Slot Usage (%) 93 | . 99 93 98 86 71 Engine 5 | . 14 5 . 7 . Core 4 | . . 2 9 4 1 Treads 23 | . 28 28 35 9 . Leg 3 | . . . . 10 . Wheel 1 | . . . . 5 6 Hover 1 | . . . . 1 19 Device 5 | . 6 . 7 5 11 Storage 9 | . 14 14 9 5 1 Processor 9 | . 7 14 3 11 15 Protection 2 | . . . 5 3 . Energy Gun 5 | . 2 . 12 3 . Ballistic Gun 15 | . 18 28 11 12 5 Peak Build Rating 52 | 8 14 16 33 52 42 Average Rating 24 | 6 10 13 26 36 33 On Entrance 16 | . 8 14 16 27 34 Avg Prop Armor Cover (%) 23 | . . . . 25 16 Naked Turns . | . . . . . . Heaviest Build 107 | 13 29 32 38 107 47 Greatest Support 89 | 40 46 46 89 89 24 Greatest Overweight (x) 3 | . . . . 3 3 Average Overweight (x) . | . . . . . . Largest Inventory Capacity 25 | 8 15 15 15 25 15 Average Capacity 14 | 7 10 15 15 18 6 Most Carried 25 | 8 15 15 15 25 7 Average Carried 13 | 3 9 14 14 15 5 Final Capacity 15 | 8 15 15 15 5 15 Final Carried 15 | 8 15 14 15 5 7 Class Distribution -------------------- 55% | Mutant 18% | Gunner 13% | Scavenger-Gunner 8% | Scavenger-Tank Dominant Class ---------------- Mutant | -10/Materials Mutant | -10/Subcaves Gunner | -8/Materials Mutant | -7/Factory Mutant | -7/Lower Caves Resources | -11 -10 -10 -8 -7 -7 ----------- Run | Yrd Mat Sub Mat Fac Low Matter Collected 2731 | 288 496 279 949 643 76 Remotely . | . . . . . . Salvage Created 4055 | 133 565 310 2026 957 64 Parts 230 | 9 39 14 114 52 2 Haulers Intercepted 7 | . 2 . 2 3 . Recyclers Shooed 6 | . 4 . 1 1 . Parts Field Recycled . | . . . . . . Retrieved Matter . | . . . . . . Parts Self-Destructed 11 | . . 7 . . 4 Prevented . | . . . . . . Parts Restored . | . . . . . . Kills | -11 -10 -10 -8 -7 -7 ------- Run | Yrd Mat Sub Mat Fac Low Combat Hostiles Destroyed 62 | . 9 7 25 18 3 Melee 10 | . . . 3 5 2 Guns 36 | . 3 7 17 9 . Cannons 3 | . 3 . . . . AOE 12 | . 3 . 5 4 . Classes Destroyed 16 | 2 6 4 3 1 . Worker 9 | . 1 . 6 2 . Builder 10 | . 2 . 5 3 . Tunneler 4 | 2 1 . 1 . . Hauler 7 | . 2 . 2 3 . Recycler 11 | 1 4 . 5 1 . Mechanic 1 | . 1 . . . . Operator 1 | . . . 1 . . Watcher 7 | . 3 . 4 . . Swarmer 22 | . 9 . 3 7 3 Grunt 23 | . . 3 16 4 . Brawler 1 | . . . 1 . . Sentry 6 | . . 1 4 1 . Hunter 3 | . . . 1 2 . Programmer 4 | . . . . 4 . Artisan 1 | . . 1 . . . Subdweller 3 | . . 3 . . . Best Kill Streak 9 | 2 6 2 9 8 3 Combat Bots Only 8 | . 3 2 8 8 3 Max Kills in Single Turn 4 | 1 2 2 4 4 1 Gunslinging 1 | . . 1 . 1 . Exploded 3 | . 2 . 3 3 . Melee 1 | . . . 1 1 1 Uniques/NPCs Destroyed . | . . . . . . Combat | -11 -10 -10 -8 -7 -7 -------- Run | Yrd Mat Sub Mat Fac Low Hostile Shots Fired 640 | . 41 52 110 305 132 Missed 183 | . 9 9 26 102 37 Hits 457 | . 32 43 84 203 95 Melee 5 | . . . 3 2 . Projectile 452 | . 32 43 81 201 95 AOE 2 | . . . . 2 . Critical Strikes 16 | . . 4 2 10 . Part Disruptions 2 | . . . . 2 . Damage Taken 6887 | . 311 783 1371 3386 1036 Core 1144 | . 26 156 258 349 355 Absorbed by Shields . | . . . . . . Ignored by Resistances 57 | . . . . 45 12 Regen/Repaired (Parts) 473 | . . . 473 . . Core Remaining (%) 60 | 100 . 27 53 . . Volleys Fired 216 | 7 52 40 74 43 . Largest 3 | 2 2 2 3 3 . Hottest 177 | 70 70 53 177 116 . Shots Fired 534 | 14 102 80 217 121 . Gun 464 | 14 42 79 211 118 . Cannon 55 | . 55 . . . . Launcher 15 | . 5 1 6 3 . Special . | . . . . . . Kinetic 369 | 7 90 79 104 89 . Thermal 145 | 7 7 . 105 26 . Explosive 15 | . 5 1 6 3 . Electromagnetic 5 | . . . 2 3 . Robot Hit Streak 37 | 7 7 37 26 14 . Robot Miss Streak 5 | 2 5 1 5 4 . Penetration Max . | . . . . . . Secondary Targets 7 | . . 1 5 1 . Max Gunslinging Chain 1 | . . 1 1 1 . Shots Hit Robots 381 | 10 53 70 137 102 9 Core Hits 163 | 4 24 12 78 44 1 Critical Kills 1 | . . . . 1 . Critical Parts Destroyed 2 | . . 1 . . 1 Critical Strikes 13 | . 3 1 4 4 1 Burn 3 | . . . 3 . . Destroy 2 | . . 1 . 1 . Blast 3 | . 3 . . . . Smash 1 | . . . . . 1 Sever 4 | . . . 1 3 . Melee Attacks 99 | . . . 20 58 21 Impact 33 | . . . . 12 21 Slashing 42 | . . . 20 22 . Piercing 24 | . . . . 24 . Sneak Attacks 5 | . . . . 5 . Combat Hostiles 1 | . . . . 1 . Follow-up Attacks . | . . . . . . Damage Inflicted 8480 | 142 1338 797 2901 2975 327 Guns 4837 | 142 355 795 2203 1342 . Cannons 573 | . 573 . . . . Explosions 1477 | . 407 . 514 556 . Melee 1588 | . . . 184 1077 327 Ramming 5 | . 3 2 . . . Kinetic 3873 | 79 878 795 1056 1065 . Thermal 1495 | 63 50 . 1157 225 . Explosive 1417 | . 407 . 454 556 . Electromagnetic 102 | . . . 50 52 . Impact 541 | . . . . 214 327 Slashing 649 | . . . 184 465 . Piercing 398 | . . . . 398 . Highest Corruption 6 | . 2 2 5 6 2 Average Corruption 2 | . 2 2 3 2 2 Corruption Purged 10 | . . . 5 5 . Corruption Blocked . | . . . . . . Effects 56 | . 10 16 4 21 5 Message Errors 11 | . 3 2 . 5 1 Matter Fused 17 | . 4 2 2 7 2 Heat Flow Errors 6 | . . 1 . 4 1 Energy Discharges 11 | . 1 4 2 3 1 Data Loss (minor) 6 | . 1 4 . 1 . Data Loss (major) 3 | . 1 1 . 1 . Misfires 1 | . . 1 . . . Alerts 1 | . . 1 . . . Overload Shots . | . . . . . . Overflow Damage 224 | . 37 . . 134 53 Projectiles 11 | . 11 . . . . Explosions 60 | . 26 . . 34 . Melee 153 | . . . . 100 53 Knockbacks 8 | . 5 . . 2 1 Impact 3 | . . . . 2 1 Kinetic 5 | . 5 . . . . Secondary . | . . . . . . Self-Inflicted Damage 319 | . 60 10 90 159 . Shots 9 | . 3 1 2 3 . Rammed 2 | . 1 1 . . . Targets Rammed 2 | . 1 1 . . . Kicked . | . . . . . . Crushed . | . . . . . . Highest Temperature 199 | 45 45 62 144 199 57 Average Temperature 45 | 18 21 43 29 68 57 Received Heat Transfer 1836 | . . 210 594 906 126 Siege Activations . | . . . . . . Martial Activations . | . . . . . . Shielding Activations . | . . . . . . Robots Disrupted . | . . . . . . Combat Hostiles . | . . . . . . Robots Corrupted 2 | . . . . 1 1 Combat Hostiles 1 | . . . . . 1 Parts Fried 3 | . . . . 1 2 Impact Corruptions 6 | . . . . 3 3 Robots Melted . | . . . . . . Combat Hostiles . | . . . . . . Parts Melted 5 | . . 1 4 . . Heat Transferred 3245 | 185 148 . 2542 370 . Parts Sabotaged . | . . . . . . Parts Stolen . | . . . . . . Parts Stripped . | . . . . . . Power Chain Reactions 1 | . . . 1 . . Alert | -11 -10 -10 -8 -7 -7 ------- Run | Yrd Mat Sub Mat Fac Low Maximum Alert Level 1 | . 1 . 1 1 . Low Security (%) 72 | 100 97 . 46 84 . Level 1 27 | . 2 . 53 15 . Level 2 . | . . . . . . Level 3 . | . . . . . . Level 4 . | . . . . . . Level 5 . | . . . . . . High Security . | . . . . . . Max Security . | . . . . . . Peak Influence 394 | 5 210 . 394 277 . Initial 93 | . . . 7 93 . Average 118 | 1 74 . 170 91 . Influence Increases 2199 | 15 344 90 834 846 70 Destroy 0b10 Robot/C 1180 | . 180 80 500 360 60 Destroy 0b10 Robot/NC 250 | 15 70 . 120 45 . Destroy Leader 278 | . 40 10 122 96 10 Successful Hack 66 | . 18 . 7 41 . Disable Machine 105 | . 15 . 15 75 . Destroy Structure 125 | . 21 . 55 49 . Lose Combat Pursuer 195 | . . . 15 180 . Influence Decreases 2116 | 15 338 82 641 776 264 Entered New Map 229 | . . 4 7 114 104 Time Decay 1437 | 15 338 68 464 442 110 Lost Part 300 | . . 10 20 220 50 Purge Threat 150 | . . . 150 . . Squads Dispatched 15 | . 2 . 3 10 . Investigation 7 | . 2 . 1 4 . Extermination 3 | . . . . 3 . Reinforcement 5 | . . . 2 3 . Assault . | . . . . . . Garrison . | . . . . . . Intercept . | . . . . . . Searches Triggered . | . . . . . . Construction Impeded 2 | . . . 1 1 . Haulers Reinforced . | . . . . . . Active Scanning Responses . | . . . . . . Cargo Convoy Interrupts . | . . . . . . Stealth | -11 -10 -10 -8 -7 -7 --------- Run | Yrd Mat Sub Mat Fac Low Distress Signals 5 | . 2 . 2 1 . Communications Jammed . | . . . . . . Distress Signals . | . . . . . . Times Spotted 123 | . 20 7 41 49 6 Peak Tracking Total 8 | . 6 2 6 8 3 Tactical Retreats 10 | . . 1 1 8 . Traps | -11 -10 -10 -8 -7 -7 ------- Run | Yrd Mat Sub Mat Fac Low Traps Triggered 7 | . 2 . 2 3 . Indirectly . | . . . . . . Trap Hack Attempts . | . . . . . . Triggered . | . . . . . . Disarmed . | . . . . . . Reprogrammed . | . . . . . . Reused . | . . . . . . Traps Extracted . | . . . . . . Installed . | . . . . . . Triggered . | . . . . . . Machines | -11 -10 -10 -8 -7 -7 ---------- Run | Yrd Mat Sub Mat Fac Low Machines Disabled 7 | . 1 . 1 5 . Max in Single Turn 3 | . 1 . 1 3 . Garrison Access 1 | . . . . 1 . Machines Repaired . | . . . . . . Machines Dismantled . | . . . . . . Machines Sabotaged . | . . . . . . Overloaded Fab Kills . | . . . . . . Hacking | -11 -10 -10 -8 -7 -7 --------- Run | Yrd Mat Sub Mat Fac Low Machines Accessed 18 | . 3 . 6 8 1 Terminals 9 | . 3 . 2 3 1 Fabricators 2 | . . . . 2 . Repair Stations 2 | . . . 2 . . Recycling Units 2 | . . . 1 1 . Scanalyzers 2 | . . . 1 1 . Garrison Access 1 | . . . . 1 . Total Hacks 53 | . 10 . 22 19 2 Successful 25 | . 5 . 12 6 2 Failed 27 | . 5 . 9 13 . Catastrophic 4 | . . . 1 3 . Database Lockouts 1 | . . . 1 . . Manual 18 | . 8 . 5 5 . Terminals 25 | . 10 . 5 8 2 Fabricators 4 | . . . . 4 . Repair Stations 10 | . . . 10 . . Recycling Units 5 | . . . 2 3 . Scanalyzers 7 | . . . 5 2 . Garrison Access 2 | . . . . 2 . Terminal Hacks 8 | . 3 . 2 1 2 Record 2 | . . . . . 2 Part Schematic 1 | . 1 . . . . Robot Schematic 1 | . 1 . . . . Branch Access Points 1 | . . . . 1 . Terminal Index 1 | . 1 . . . . Unreport Threat 1 | . . . 1 . . Hauler Manifests 1 | . . . 1 . . Fabricator Hacks 2 | . . . . 2 . Load Schematic 1 | . . . . 1 . Build 1 | . . . . 1 . Repair Station Hacks 6 | . . . 6 . . Scan Component 3 | . . . 3 . . Repair 3 | . . . 3 . . Recycling Unit Hacks 3 | . . . 1 2 . Retrieve Matter 1 | . . . . 1 . Retrieve Components 2 | . . . 1 1 . Scanalyzer 3 | . . . 3 . . Insert Component 1 | . . . 1 . . Analyze 1 | . . . 1 . . Retrieve Study 1 | . . . 1 . . Garrison Access Hacks 1 | . . . . 1 . Seal Access 1 | . . . . 1 . Unauthorized Hacks 2 | . 2 . . . . Terminals 2 | . 2 . . . . Track 1 | . 1 . . . . Botnet 1 | . 1 . . . . Fabricators . | . . . . . . Repair Stations . | . . . . . . Recycling Units . | . . . . . . Scanalyzers . | . . . . . . Garrison Access . | . . . . . . Data Cores Recovered . | . . . . . . Used . | . . . . . . Hacking Detections 13 | . 3 . 3 6 1 Full Trace Events 6 | . 1 . 1 4 . Feedback Events 1 | . . . 1 . . Corruption 1 | . . . 1 . . Feedback Blocked . | . . . . . . Robot Schematics Acquired 1 | . 1 . . . . Robots Built . | . . . . . . Authchips . | . . . . . . Time . | . . . . . . Total Robot Build Rating . | . . . . . . Part Schematics Acquired 2 | . 1 . 1 . . Parts Built 2 | . . . . 2 . Authchips . | . . . . . . Time 42 | . . . . 42 . Total Part Build Rating 8 | . . . . 8 . Part Studies Acquired 1 | . . . 1 . . Parts Repaired 3 | . . . 3 . . Time 102 | . . . 102 . . Parts Recycled . | . . . . . . Recycled Matter . | . . . . . . Retrieved Matter . | . . . . . . Retrieved Components 3 | . . . 3 . . Parts Scanalyzed 1 | . . . 1 . . Part Schematics Acquired 1 | . . . 1 . . Parts Damaged . | . . . . . . Bothacking | -11 -10 -10 -8 -7 -7 ------------ Run | Yrd Mat Sub Mat Fac Low Used RIF Installer . | . . . . . . Robots Hacked . | . . . . . . Non-combat . | . . . . . . Combat . | . . . . . . Robot Hacks Applied . | . . . . . . Relay Couplers Released . | . . . . . . Fabnet Peak Effective % . | . . . . . . Robots Rewired . | . . . . . . Allies Hacked . | . . . . . . Hacks Repelled . | . . . . . . Allies | -11 -10 -10 -8 -7 -7 -------- Run | Yrd Mat Sub Mat Fac Low Total Allies . | . . . . . . Largest Group . | . . . . . . Highest-Rated Group . | . . . . . . Highest-Rated Ally . | . . . . . . Total Orders . | . . . . . . Ally Attacks . | . . . . . . Total Damage . | . . . . . . Kills . | . . . . . . Allies Corrupted . | . . . . . . Allies Melted . | . . . . . . Intel | -11 -10 -10 -8 -7 -7 ------- Run | Yrd Mat Sub Mat Fac Low Active Infowar (turns) 609 | 53 465 . . 91 . Sensors 91 | . . . . 91 . Seismic 518 | 53 465 . . . . Robot Analysis Total . | . . . . . . Derelict Logs Recovered 3 | . . 2 . . 1 Drone Launches . | . . . . . . Drone Recoveries . | . . . . . . Exploration | -11 -10 -10 -8 -7 -7 ------------- Run | Yrd Mat Sub Mat Fac Low Turns Passed 6531 | 104 1078 1120 2103 1894 232 Spaces Moved 3478 | 42 516 589 774 1273 284 Core 429 | 2 . . . 427 . Treads 2022 | 40 516 589 774 103 . Legs 360 | . . . . 360 . Wheels 313 | . . . . 310 3 Hover 354 | . . . . 73 281 Flight . | . . . . . . Fastest Speed 47 | 50 160 160 160 47 47 Average Speed 133 | 154 160 160 160 110 54 Slowest Speed 240 | 160 160 160 160 240 125 Overloaded Moves 14 | . . . . 14 . Propulsion Burnouts . | . . . . . . Robots Hopped . | . . . . . . Potential Cave-ins . | . . . . . . Cave-ins Triggered . | . . . . . . Exploration Rate (%) 40 | 5 67 44 50 38 38 Regions Visited 5 Branch Regions 2 Pre-discovered Areas 1 | . . 1 . . . Known Exits Taken 2 | . . . 1 1 . Unknown Exits Taken 3 | 1 1 1 . . . Scrap Searched . | . . . . . . Spaces Dug 27 | . 2 . 8 16 1 Terrain Destroyed 124 | . 21 7 48 47 1 Melee 25 | . . . 8 16 1 Projectile 1 | . . . 1 . . AOE 98 | . 21 7 39 31 . Terrain Rammed . | . . . . . . Walls Destroyed . | . . . . . . Machines Disabled . | . . . . . . Actions | -11 -10 -10 -8 -7 -7 --------- Run | Yrd Mat Sub Mat Fac Low Total 4767 | 64 667 686 1448 1580 322 Wait 673 | . 71 49 460 85 8 Move 3473 | 41 515 588 773 1272 284 Hop . | . . . . . . Pick Up 69 | 9 9 1 26 24 . Fast Attach 57 | 6 5 1 21 21 3 Attach 29 | 1 . 2 7 19 . Detach 2 | . . . . . 2 Swap 53 | . 4 3 27 16 3 Drop 86 | . 10 1 40 34 1 Fire 216 | 7 52 40 74 43 . Melee 99 | . . . 20 58 21 Ram . | . . . . . . Kick . | . . . . . . Crush 2 | . 1 1 . . . Escape Stasis 8 | . . . . 8 . Rewire . | . . . . . . Trap . | . . . . . . Miscellaneous . | . . . . . . Route ------- -11/Scrapyard -10/Materials (discovered 4 exits: [*Mat x2] / [*Min] / [*Sub]) -10/Subcaves -8/Materials (discovered 2 exits: *Fac x2) -7/Factory (discovered 3 exits: [*Fac] / *Low x2) -7/Lower Caves History --------- Turn | Location | Event 4 | -11/Scrapyard | Discovered new exit (range 16) 105 | -11/Scrapyard | Entered Materials 267 | -10/Materials | Discovered new exit (range 5) 315 | -10/Materials | Build established: Mutant 321 | -10/Materials | Discovered new exit (range 9) 615 | -10/Materials | Discovered new exit (range 15) 727 | -10/Materials | Discovered new exit (range 3) 1183 | -10/Materials | Entered Subcaves 1205 | -10/Subcaves | Ambushed by angry Subdweller bent on revenge 1582 | -10/Subcaves | Core integrity fell below 50% 1605 | -10/Subcaves | Learned location of Storage (-9) 1832 | -10/Subcaves | Learned location of 1 exit from Materials 2024 | -10/Subcaves | Discovered new exit (range 8) 2256 | -10/Subcaves | Ambushed by angry Subdweller bent on revenge 2303 | -10/Subcaves | Entered Materials 2303 | -8/Materials | Evolved 4 slots: Propulsion x2, Utility x1, Weapon x1 2304 | -8/Materials | Identified exit to Factory 2418 | -8/Materials | Repaired Imp. Treads 2452 | -8/Materials | Repaired Imp. Treads 2992 | -8/Materials | Discovered exit to Factory (range 15) 3273 | -8/Materials | Central database locked down 3364 | -8/Materials | Destroyed 8 combat bots 4163 | -8/Materials | Build established: Scavenger-Tank 4169 | -8/Materials | Repaired Arm. Treads 4406 | -8/Materials | Entered Factory 4406 | -7/Factory | Evolved 2 slots: Power x1, Utility x1 4733 | -7/Factory | Discovered new exit (range 11) 4736 | -7/Factory | Build established: Scavenger-Gunner 4896 | -7/Factory | Identified exit to Lower Caves 5222 | -7/Factory | Fabricated Imp. Titanium Leg? 5663 | -7/Factory | Destroyed 8 combat bots 6007 | -7/Factory | Lost 18 parts (3p6n3u6w) 6099 | -7/Factory | Discovered new exit (range 11) 6193 | -7/Factory | Build established: Mutant 6300 | -7/Factory | Entered Lower Caves 6320 | -7/Lower Caves | Learned location of 1 exit from Proximity Caves 6436 | -7/Lower Caves | Core integrity fell below 50% 6498 | -7/Lower Caves | Attracted the attention of an 0b10 checkpoint 6521 | -7/Lower Caves | Core integrity fell below 20% 6532 | -7/Lower Caves | Destroyed by S-27 Virus with Autogun Last Messages --------------- 06440_ Acquired 18 matter. 06444_ S-27 Virus destroyed. 06447_ Acquired 18 matter. 06449_ VTOL Module fries itself beyond repair. 06449_ Acquired Autogun. 06451_ Dropped Autogun. 06454_ HPDN:&7SZX==URNAB,DWAZ9H13 06468_ Acquired 40 matter. 06469_ Acquired Neutrino Core. 06498_ Y-54 Guardian: "INTERCEPTING UNREGISTERED DERELICT." 06501_ System corrupted: Energy discharge (-63). 06503_ Wheel destroyed. 06507_ Med. Reflective Plating destroyed. 06513_ Autogun destroyed. 06513_ Wheel destroyed. 06514_ Neutrino Core destroyed. 06519_ S-27 Virus destroyed. 06524_ VTOL Module fries itself beyond repair. Map ----- +----------------------------------------------------+ | ??????????????????????????# ## #??##?????????? | | ??????????????????????????# ## #?????????????? | | ??????????????????????????# ### #?????????????? | | ??????????????????????????# ### ##?????????????? | | ??????????????????????????# ####??????????????? | | ?????????????????????????## ##??????????????? | | ?????????????????????????# ##?????????????? | | ?????????????????????????## #???????####??? | | ?????????????????????????## #??????## #??? | | ?????????????????????????# ##?????## ##?? | | ?????????????????????????## #?????## #?? | | ??????????????????????????## ## #????## ####?? | | ???????????????????????????# ## #???## ##???? | | ???????????????????????????# ##### ##??? | | ????????????????????????#### #??? | | ???????????????????????## ! = ## #?? | | ???????????????????????# ##? #? | | ???????????????????????# ##?? ##? | | ???????????????????????## ## ###????##?? | | ????????????????????????# # #####?????????? | | ????????????????????????# ## # #?????????????? | | ????????????????????????# ### ## #?????????????? | | ????????????????????##### #?#### ????????????? | | ???????????????????## s #????# ???????????? | | ??????????# %## ## ######## ?????????? | | ???????????# ! %@ ????????? | | ????????????# [ Y ???????? | | ????????????# ## #? ??????? | | ???????????# ??#### #?????????? | | ??????????? ??????# ### #?????????? | | ??????????? ##??????? #?? ??????????? | | ???????????? ?????????? ??? ?????????? | | ???????????? ??????????? ???? ??????????? | | ??????????????????????? ???? ??????????? | | ??????????????????????? ????? ???????????? | | ??????????????????????? ????? ???????????? | | ???????????????????????# ??????????????????? | | ???????????????????????## ?????????????????? | | ?????????????????????????# ?????????????????? | | ??????????????????????????# ???????????????????? | | ???????????????????????????#?????????????????????? | | ?????????????????????????????????????????????????? | | ?????????????????????????????????????????????????? | | ?????????????????????????????????????????????????? | | ?????????????????????????????????????????????????? | | ?????????????????????????????????????????????????? | | ?????????????????????????????????????????????????? | | ?????????????????????????????????????????????????? | | ?????????????????????????????????????????????????? | | ?????????????????????????????????????????????????? | +----------------------------------------------------+ Best States ------------- Heat Dissipation 64 Coolant Potential 65 Energy Generation 25 Energy Capacity 350 Matter Stores 300 Matter Capacity 300 Sight Range 16 Robot Scan Range 15 Terrain Scan Density 10 Armor Coverage 225 Resistance: TH 15 Resistance: EM 15 Evasion (%) 55 Targeting Accuracy 6 Recoil Reduction 4 Salvage Targeting 2 Offensive Hacking 10 Defensive Hacking 10 Item Schematics ----------------- Hcp. Storage Unit | -10/Materials | Hacked Imp. Titanium Leg | -8/Materials | Scanalyzed Robot Schematics ------------------ M-13 Machinist | -10/Materials | Hacked Fabricated ------------ Imp. Titanium Leg | x2 | -7/Factory Repaired ---------- Imp. Treads | 14% | -8/Materials Imp. Treads | 14% | -8/Materials Arm. Treads | 30% | -8/Materials Studied --------- Hvy. Assault Rifle | -8/Materials | Hacked Alien Tech Used ----------------- None Achievements -------------- None Challenges ------------ None Game ------ Seed ArchitectTeslaBank Manual? 0 Play Time 00:52:36 Cumulative 766.4 hours Start 2026.01.10 @ 20:05:02 End 2026.01.10 @ 20:55:09 Sessions 1 Manual Loads 0 Difficulty Rogue Special Mode None Game No. 186 Rogue 48 Adventurer 138 Explorer 0 Win Type - Total 11 Types 7/0/1/2/0/0/0/0/1/0 Lore% 79 Gallery% 78 Achievement% 55 Wizard Run 0 Options --------- Layout 2 ASCII 0 Keyboard 0 Movement Mouse Keybinds 0 Fullscreen 1 Font 24/Smallcaps Map View 50x49 Zoom Use 1% Tactical HUD 1 Map Filters NONE Filters NONE Steam 1 RUN: 1390ee4c-ac3d-4a39-8515-cc41651c9d03